Workbook

Sheet Cover
B2: 3GPP TSG-RAN WG4 Meeting #116bis | J2: R4-2515040
B3: Prague, Czech, 13th-17th, Oct, 2025
B5: Source: Samsung
B6: Title: Simulation results summary for NTN Phase 3 demodulation
B7: Agenda: 6.23

Sheet Parameters
C2: Parameters for deriving performance requirements
C3: Ideal Span Threshold | D3: 2 | E3: dB
C4: Impairment Span Threshold | D4: 4 | E4: dB
B7: Notes | C7: 1. Call function DerivingPerfReq()
C8: 2. If the ruls does not apply, or fails, -100dB or less will be returned
D9: -100 | E9: Not enough input
D10: -101 | E10: Input should be pairs
D11: -102 | E11: Too large span for impairment
D12: -103 | E12: After removal iteration, not enough input

Sheet PUSCH requirement OCC feature
C1: Case | D1: Tx | E1: Rx | F1: SCS | G1: BW | H1: Mapping type | I1: DMRS | J1: Channel Model | K1: MCS | L1: FO (HZ) | M1: No. of Rep | N1: OCC length | O1: OCC index | P1: 38.104 req | Q1: 38.141-1/2 req | R1: Samsung | T1: Ericsson | V1: Huawei | X1: CATT | Z1: ZTE | AB1: SPAN | AC1: SPAN | AD1: AVERAGE | AE1: AVERAGE
R2: ideal | S2: Impairment | T2: ideal | U2: Impairment | V2: ideal | W2: Impairment | X2: ideal | Y2: Impairment | Z2: ideal | AA2: Impairment | AB2: ideal | AC2: Impairment | AD2: ideal | AE2: Impairment
C3: 1 | D3: 1 | E3: 1 | F3: 15khZ | G3: 5MHz | H3: A | I3: (2,11) | J3: NTN-TDLC5-200 Low | K3: MCS 5 (99/1024) | L3: 0 | M3: 2 | N3: 2 | O3: 0 | R3: -7.36 | T3: -8.27 | V3: -2.7 | AB3: =MAX(R3:Z3)-MIN(R3:Z3) -> 5.57 | AD3: =AVERAGE(R3:Z3) -> -6.11
O4: 1 | R4: -7.28 | T4: -8.27 | V4: -2.7 | AB4: =MAX(R4:Z4)-MIN(R4:Z4) -> 5.57 | AD4: =AVERAGE(R4:Z4) -> -6.083333333
C5: 2 | D5: 1 | E5: 1 | F5: 15khZ | G5: 5MHz | H5: A | I5: (2,11) | J5: NTN-TDLC5-200 Low | K5: MCS 5 (99/1024) | L5: 200 | M5: 2 | N5: 2 | O5: 0 | R5: -7.14 | T5: -8.26 | V5: -2.7 | AB5: 5.56 | AD5: -6.033333333
O6: 1 | R6: -7.09 | T6: -8.26 | V6: -2.7 | AB6: 5.56 | AD6: -6.016666667
C7: 3 | D7: 1 | E7: 2 | F7: 15khZ | G7: 5MHz | H7: A | I7: (2,11) | J7: NTN-TDLC5-200 Low | K7: MCS 5 (99/1024) | L7: 0 | M7: 2 | N7: 2 | O7: 0 | R7: -10.59 | T7: -11.4 | V7: -5.7 | AB7: 5.7 | AD7: -9.23
O8: 1 | R8: -10.55 | T8: -11.4 | V8: -5.7 | AB8: 5.7 | AD8: -9.216666667
C9: 4 | D9: 1 | E9: 2 | F9: 15khZ | G9: 5MHz | H9: A | I9: (2,11) | J9: NTN-TDLC5-200 Low | K9: MCS 5 (99/1024) | L9: 200 | M9: 2 | N9: 2 | O9: 0 | R9: -10.4 | T9: -11.4 | V9: -5.7 | AB9: 5.7 | AD9: -9.166666667
O10: 1 | R10: -10.32 | T10: -11.4 | V10: -5.7 | AB10: 5.7 | AD10: -9.14
C11: 5 | D11: 1 | E11: 1 | F11: 15khZ | G11: 5MHz | H11: A | I11: (2,11) | J11: NTN-TDLA100-200 Low | K11: MCS 5 (99/1024) | L11: 0 | M11: 2 | N11: 2 | O11: 0 | R11: 1.7 | T11: -6.21 | V11: -2.1 | AB11: 7.91 | AD11: -2.203333333
O12: 1 | R12: 1.85 | T12: -6.21 | V12: -2.1 | AB12: 8.06 | AD12: -2.153333333
C13: 6 | D13: 1 | E13: 1 | F13: 15khZ | G13: 5MHz | H13: A | I13: (2,11) | J13: NTN-TDLA100-200 Low | K13: MCS 5 (99/1024) | L13: 200 | M13: 2 | N13: 2 | O13: 0 | R13: 1.71 | T13: -6.23 | V13: -2.1 | AB13: 7.94 | AD13: -2.206666667
O14: 1 | R14: 1.74 | T14: -6.23 | V14: -2.1 | AB14: 7.97 | AD14: -2.196666667
C15: 7 | D15: 1 | E15: 2 | F15: 15khZ | G15: 5MHz | H15: A | I15: (2,11) | J15: NTN-TDLA100-200 Low | K15: MCS 5 (99/1024) | L15: 0 | M15: 2 | N15: 2 | O15: 0 | R15: -7.44 | T15: -10 | V15: -5.7 | AB15: 4.3 | AD15: -7.713333333
O16: 1 | R16: -7.36 | T16: -10 | V16: -5.7 | AB16: 4.3 | AD16: -7.686666667
C17: 8 | D17: 1 | E17: 2 | F17: 15khZ | G17: 5MHz | H17: A | I17: (2,11) | J17: NTN-TDLA100-200 Low | K17: MCS 5 (99/1024) | L17: 200 | M17: 2 | N17: 2 | O17: 0 | R17: -7.27 | T17: -10 | V17: -5.7 | AB17: 4.3 | AD17: -7.656666667
O18: 1 | R18: -7.24 | T18: -10 | V18: -5.7 | AB18: 4.3 | AD18: -7.646666667
C20: 9 | D20: 1 | E20: 1 | F20: 30khZ | G20: 10MHz | H20: A | I20: (2,11) | J20: NTN-TDLC5-200 Low | K20: MCS 5 (99/1024) | L20: 0 | M20: 2 | N20: 2 | O20: 0 | R20: -7.32 | V20: -2.8 | AB20: 4.52 | AD20: -5.06
O21: 1 | R21: -7.32 | V21: -2.8 | AB21: 4.52 | AD21: -5.06
C22: 10 | D22: 1 | E22: 1 | F22: 30khZ | G22: 10MHz | H22: A | I22: (2,11) | J22: NTN-TDLC5-200 Low | K22: MCS 5 (99/1024) | L22: 200 | M22: 2 | N22: 2 | O22: 0 | R22: -6.52 | V22: -2.8 | AB22: 3.72 | AD22: -4.66
O23: 1 | R23: -6.53 | V23: -2.8 | AB23: 3.73 | AD23: -4.665
C24: 11 | D24: 1 | E24: 2 | F24: 30khZ | G24: 10MHz | H24: A | I24: (2,11) | J24: NTN-TDLC5-200 Low | K24: MCS 5 (99/1024) | L24: 0 | M24: 2 | N24: 2 | O24: 0 | R24: -10.54 | V24: -5.7 | AB24: 4.84 | AD24: -8.12
O25: 1 | R25: -10.58 | V25: -5.7 | AB25: 4.88 | AD25: -8.14
C26: 12 | D26: 1 | E26: 2 | F26: 30khZ | G26: 10MHz | H26: A | I26: (2,11) | J26: NTN-TDLC5-200 Low | K26: MCS 5 (99/1024) | L26: 200 | M26: 2 | N26: 2 | O26: 0 | R26: -9.75 | V26: -5.7 | AB26: 4.05 | AD26: -7.725
O27: 1 | R27: -9.79 | V27: -5.7 | AB27: 4.09 | AD27: -7.745
C28: 13 | D28: 1 | E28: 1 | F28: 30khZ | G28: 10MHz | H28: A | I28: (2,11) | J28: NTN-TDLA100-200 Low | K28: MCS 5 (99/1024) | L28: 0 | M28: 2 | N28: 2 | O28: 0 | R28: -5.25 | V28: -2.1 | AB28: 3.15 | AD28: -3.675
O29: 1 | R29: -5.26 | V29: -2.1 | AB29: 3.16 | AD29: -3.68
C30: 14 | D30: 1 | E30: 1 | F30: 30khZ | G30: 10MHz | H30: A | I30: (2,11) | J30: NTN-TDLA100-200 Low | K30: MCS 5 (99/1024) | L30: 200 | M30: 2 | N30: 2 | O30: 0 | R30: -4.37 | V30: -2.1 | AB30: 2.27 | AD30: -3.235
O31: 1 | R31: -4.38 | V31: -2.1 | AB31: 2.28 | AD31: -3.24
C32: 15 | D32: 1 | E32: 2 | F32: 30khZ | G32: 10MHz | H32: A | I32: (2,11) | J32: NTN-TDLA100-200 Low | K32: MCS 5 (99/1024) | L32: 0 | M32: 2 | N32: 2 | O32: 0 | R32: -9.58 | V32: -5.8 | AB32: 3.78 | AD32: -7.69
O33: 1 | R33: -9.56 | V33: -5.8 | AB33: 3.76 | AD33: -7.68
C34: 16 | D34: 1 | E34: 2 | F34: 30khZ | G34: 10MHz | H34: A | I34: (2,11) | J34: NTN-TDLA100-200 Low | K34: MCS 5 (99/1024) | L34: 200 | M34: 2 | N34: 2 | O34: 0 | R34: -8.88 | V34: -5.8 | AB34: 3.08 | AD34: -7.34
O35: 1 | R35: -8.85 | V35: -5.8 | AB35: 3.05 | AD35: -7.325
C37: 17 | D37: 1 | E37: 1 | F37: 15khZ | G37: 5MHz | H37: B | I37: (2,11) | J37: NTN-TDLC5-200 Low | K37: MCS 5 (99/1024) | L37: 0 | V37: -2.7 | AB37: 0 | AD37: -2.7
V38: -2.7 | AB38: 0 | AD38: -2.7
C39: 18 | D39: 1 | E39: 1 | F39: 15khZ | G39: 5MHz | H39: B | I39: (2,11) | J39: NTN-TDLC5-200 Low | K39: MCS 5 (99/1024) | L39: 200 | V39: -2.7 | AB39: 0 | AD39: -2.7
V40: -2.7 | AB40: 0 | AD40: -2.7
C41: 19 | D41: 1 | E41: 2 | F41: 15khZ | G41: 5MHz | H41: B | I41: (2,11) | J41: NTN-TDLC5-200 Low | K41: MCS 5 (99/1024) | L41: 0 | V41: -5.7 | AB41: 0 | AD41: -5.7
V42: -5.7 | AB42: 0 | AD42: -5.7
C43: 20 | D43: 1 | E43: 2 | F43: 15khZ | G43: 5MHz | H43: B | I43: (2,11) | J43: NTN-TDLC5-200 Low | K43: MCS 5 (99/1024) | L43: 200 | V43: -5.7 | AB43: 0 | AD43: -5.7
V44: -5.7 | AB44: 0 | AD44: -5.7
C45: 21 | D45: 1 | E45: 1 | F45: 15khZ | G45: 5MHz | H45: B | I45: (2,11) | J45: NTN-TDLA100-200 Low | K45: MCS 5 (99/1024) | L45: 0 | V45: -2.1 | AB45: 0 | AD45: -2.1
V46: -2.1 | AB46: 0 | AD46: -2.1
C47: 22 | D47: 1 | E47: 1 | F47: 15khZ | G47: 5MHz | H47: B | I47: (2,11) | J47: NTN-TDLA100-200 Low | K47: MCS 5 (99/1024) | L47: 200 | V47: -2.1 | AB47: 0 | AD47: -2.1
V48: -2.1 | AB48: 0 | AD48: -2.1
C49: 23 | D49: 1 | E49: 2 | F49: 15khZ | G49: 5MHz | H49: B | I49: (2,11) | J49: NTN-TDLA100-200 Low | K49: MCS 5 (99/1024) | L49: 0 | V49: -5.7 | AB49: 0 | AD49: -5.7
V50: -5.7 | AB50: 0 | AD50: -5.7
C51: 24 | D51: 1 | E51: 2 | F51: 15khZ | G51: 5MHz | H51: B | I51: (2,11) | J51: NTN-TDLA100-200 Low | K51: MCS 5 (99/1024) | L51: 200 | V51: -5.7 | AB51: 0 | AD51: -5.7
V52: -5.7 | AB52: 0 | AD52: -5.7
AB53: 0
D54: 1 | E54: 1 | F54: 30khZ | G54: 10MHz | H54: B | I54: (2,11) | J54: NTN-TDLC5-200 Low | K54: MCS 5 (99/1024) | L54: 0 | V54: -2.8 | AB54: 0 | AD54: -2.8
V55: -2.8 | AB55: 0 | AD55: -2.8
D56: 1 | E56: 1 | F56: 30khZ | G56: 10MHz | H56: B | I56: (2,11) | J56: NTN-TDLC5-200 Low | K56: MCS 5 (99/1024) | L56: 200 | V56: -2.8 | AB56: 0 | AD56: -2.8
V57: -2.8 | AB57: 0 | AD57: -2.8
D58: 1 | E58: 2 | F58: 30khZ | G58: 10MHz | H58: B | I58: (2,11) | J58: NTN-TDLC5-200 Low | K58: MCS 5 (99/1024) | L58: 0 | V58: -5.7 | AB58: 0 | AD58: -5.7
V59: -5.7 | AB59: 0 | AD59: -5.7
D60: 1 | E60: 2 | F60: 30khZ | G60: 10MHz | H60: B | I60: (2,11) | J60: NTN-TDLC5-200 Low | K60: MCS 5 (99/1024) | L60: 200 | V60: -5.7 | AB60: 0 | AD60: -5.7
V61: -5.7 | AB61: 0 | AD61: -5.7
D62: 1 | E62: 1 | F62: 30khZ | G62: 10MHz | H62: B | I62: (2,11) | J62: NTN-TDLA100-200 Low | K62: MCS 5 (99/1024) | L62: 0 | V62: -2.1 | AB62: 0 | AD62: -2.1
V63: -2.1 | AB63: 0 | AD63: -2.1
D64: 1 | E64: 1 | F64: 30khZ | G64: 10MHz | H64: B | I64: (2,11) | J64: NTN-TDLA100-200 Low | K64: MCS 5 (99/1024) | L64: 200 | V64: -2.1 | AB64: 0 | AD64: -2.1
V65: -2.1 | AB65: 0 | AD65: -2.1
D66: 1 | E66: 2 | F66: 30khZ | G66: 10MHz | H66: B | I66: (2,11) | J66: NTN-TDLA100-200 Low | K66: MCS 5 (99/1024) | L66: 0 | V66: -5.7 | AB66: 0 | AD66: -5.7
V67: -5.7 | AB67: 0 | AD67: -5.7
D68: 1 | E68: 2 | F68: 30khZ | G68: 10MHz | H68: B | I68: (2,11) | J68: NTN-TDLA100-200 Low | K68: MCS 5 (99/1024) | L68: 200 | V68: -5.7 | AB68: =MAX(R68:Z68)-MIN(R68:Z68) -> 0 | AD68: =AVERAGE(R68:Z68) -> -5.7
V69: -5.7 | AB69: 0 | AD69: -5.7

Sheet PDSCH requirement with RedCap
B4: NTN RedCap 1Rx
B5: Test number | C5: MCS/PRB | D5: Channel model | E5: HARQ process | F5: Antenna configuration | G5: Reference channel | H5: Huawei | I5: Ericsson | J5: Apple | K5: QC | L5: MTK | M5: span | N5: STD | O5: average
B6: 1 | C6: MCS4, 52PRB | D6: NTN-TDLA100-200 | E6: 16 | F6: 1x1 | G6: New FRC for FDD | H6: 1.1 | I6: 0.7 | J6: 2.2 | M6: =MAX(H6:L6)-MIN(H6:L6) -> 1.5 | N6: =_xlfn.STDEV.S(H6:L6) -> 0.7767453465 | O6: =AVERAGE(H6:L6) -> 1.333333333
G7: New FRC for HD-FDD
B8: 2 | C8: MCS4, 52PRB | D8: NTN-TDLC5-200 | E8: 32 | F8: 1x1 | G8: New FRC for FDD | H8: 0.2 | I8: -0.9 | J8: 0.8 | M8: =MAX(H8:L8)-MIN(H8:L8) -> 1.7 | N8: =_xlfn.STDEV.S(H8:L8) -> 0.8621678104 | O8: =AVERAGE(H8:L8) -> 0.03333333333
G9: New FRC for HD-FDD
B10: 3 | C10: MCS13, 52PRB | D10: NTN-TDLC5-200 | E10: 16 | F10: 1x1 | G10: R.PDSCH.1-2.1 FDD | H10: 8 | I10: 7.3 | J10: 8.3 | M10: =MAX(H10:L10)-MIN(H10:L10) -> 1 | N10: =_xlfn.STDEV.S(H10:L10) -> 0.5131601439 | O10: =AVERAGE(H10:L10) -> 7.866666667
G11: R.PDSCH. 1-1.2 HD-FDD
B13: NTN RedCap 1Rx
B14: Test number | C14: MCS/PRB | D14: Channel model | E14: HARQ process | F14: Antenna configuration | G14: Reference channel | H14: Huawei | I14: Ericsson | J14: Apple | K14: QC | L14: MTK | M14: Average | N14: additional margin | O14: SNR
B15: 1 | C15: MCS4, 52PRB | D15: NTN-TDLA100-200 | E15: 16 | F15: 1x1 | G15: New FRC for FDD | H15: 1.1 | I15: 0.7 | J15: 2.2 | M15: =AVERAGE(H15:L15) -> 1.333333333 | N15: 0.5 | O15: =ROUND(M15+N15,1) -> 1.8
G16: New FRC for HD-FDD
B17: 2 | C17: MCS4, 52PRB | D17: NTN-TDLC5-200 | E17: 32 | F17: 1x1 | G17: New FRC for FDD | H17: 0.2 | I17: -0.9 | J17: 0.8 | M17: =AVERAGE(H17:L17) -> 0.03333333333 | N17: 0.5 | O17: =ROUND(M17+N17,1) -> 0.5
G18: New FRC for HD-FDD
B19: 3 | C19: MCS13, 52PRB | D19: NTN-TDLC5-200 | E19: 16 | F19: 1x1 | G19: R.PDSCH.1-2.1 FDD | H19: 8 | I19: 7.3 | J19: 8.3 | M19: =AVERAGE(H19:L19) -> 7.866666667 | N19: =_xlfn.STDEV.S(H19:L19) -> 0.5131601439 | O19: =ROUND(M19+N19,1) -> 8.4
G20: R.PDSCH. 1-1.2 HD-FDD
B22: NTN eRedCap 1Rx/2Rx UE without baseband bandwidth reduction capability
B23: Test number | C23: MCS/PRB | D23: Channel model | E23: HARQ process | F23: Antenna configuration | G23: Reference channel | H23: Huawei | I23: Ericsson | J23: Apple | K23: QC | L23: MTK | M23: SPAN | N23: STD | O23: average
B24: 1 | C24: MCS4, 52 | D24: NTN-TDLA100-200 | E24: 16 | F24: 1x1 | G24: New FRC for FDD | H24: 1.1 | I24: 0.7 | J24: 2.2 | M24: =MAX(H24:L24)-MIN(H24:L24) -> 1.5 | N24: =_xlfn.STDEV.S(H24:L24) -> 0.7767453465 | O24: =AVERAGE(H24:L24) -> 1.333333333
G25: New FRC for HD-FDD
B26: 2 | C26: MCS13, 40 | D26: NTN-TDLC5-200 | E26: 16 | F26: 1x1 | G26: R.PDSCH.1-12.3 FDD | H26: 8 | I26: 7.3 | J26: 8.3 | M26: =MAX(H26:L26)-MIN(H26:L26) -> 1 | N26: =_xlfn.STDEV.S(H26:L26) -> 0.5131601439 | O26: =AVERAGE(H26:L26) -> 7.866666667
G27: R.PDSCH.1-2.4 HD-FDD
B28: 3 | C28: MCS4, 52 | D28: NTN-TDLA100-200 | E28: 16 | F28: 1x2 | G28: New FRC for FDD | I28: -2.7 | M28: =MAX(H28:L28)-MIN(H28:L28) -> 0
G29: New FRC for HD-FDD
B30: 4 | C30: MCS13, 40 | D30: NTN-TDLC5-200 | E30: 16 | F30: 1x2 | G30: R.PDSCH.1-12.3 FDD | H30: 4.8 | I30: 3.6 | J30: 4.8 | M30: =MAX(H30:L30)-MIN(H30:L30) -> 1.2 | N30: =_xlfn.STDEV.S(H30:L30) -> 0.692820323 | O30: =AVERAGE(H30:L30) -> 4.4
G31: R.PDSCH.1-2.4 HD-FDD
B33: NTN eRedCap 1Rx/2Rx UE without baseband bandwidth reduction capability
B34: Test number | C34: MCS/PRB | D34: Channel model | E34: HARQ process | F34: Antenna configuration | G34: Reference channel | H34: Huawei | I34: Ericsson | J34: Apple | K34: QC | L34: MTK | M34: average | N34: additional margin | O34: SNR
B35: 1 | C35: MCS4, 52 | D35: NTN-TDLA100-200 | E35: 16 | F35: 1x1 | G35: New FRC for FDD | H35: 1.1 | I35: 0.7 | J35: 2.2 | M35: =AVERAGE(H35:L35) -> 1.333333333 | N35: 0.5 | O35: =ROUND(M35+N35,1) -> 1.8
G36: New FRC for HD-FDD
B37: 2 | C37: MCS13, 40 | D37: NTN-TDLC5-200 | E37: 16 | F37: 1x1 | G37: R.PDSCH.1-12.3 FDD | H37: 8 | I37: 7.3 | J37: 8.3 | M37: =AVERAGE(H37:L37) -> 7.866666667 | N37: 0.5 | O37: =ROUND(M37+N37,1) -> 8.4
G38: R.PDSCH.1-2.4 HD-FDD
B39: 3 | C39: MCS4, 52 | D39: NTN-TDLA100-200 | E39: 16 | F39: 1x2 | G39: New FRC for FDD | I39: -2.7 | M39: =AVERAGE(H39:L39) -> -2.7 | N39: 0.5 | O39: -2.2
G40: New FRC for HD-FDD
B41: 4 | C41: MCS13, 40 | D41: NTN-TDLC5-200 | E41: 16 | F41: 1x2 | G41: R.PDSCH.1-12.3 FDD | H41: 4.8 | I41: 3.6 | J41: 4.8 | M41: =AVERAGE(H41:L41) -> 4.4 | N41: 0.5 | O41: =ROUND(M41+N41,1) -> 4.9
G42: R.PDSCH.1-2.4 HD-FDD
B48: NTN eRedCap 1Rx/2Rx UE with baseband bandwidth reduction capability
B49: Test number | C49: MCS/PRB | D49: Channel model | E49: HARQ process | F49: Antenna configuration | G49: Reference channel | H49: Huawei | I49: Ericsson | J49: Apple | K49: QC | L49: MTK | M49: SPAN | N49: STD | O49: average
B50: 1 | C50: MCS4, 25 | D50: NTN-TDLA100-200 | E50: 16 | F50: 1x1 | G50: New FRC for FDD | H50: 1.4 | I50: 1.2 | J50: 2.5 | M50: =MAX(H50,L50) -> 1.4 | N50: =_xlfn.STDEV.S(H50:L50) -> 0.7 | O50: =AVERAGE(H50:L50) -> 1.7
G51: New FRC for HD-FDD
B52: 2 | C52: MCS13, 25 | D52: NTN-TDLC5-200 | E52: 16 | F52: 1x1 | G52: R.PDSCH.1-25.1 FDD | H52: 7.6 | I52: 7.1 | J52: 7.7 | M52: =MAX(H52,L52) -> 7.6 | N52: =_xlfn.STDEV.S(H52:L52) -> 0.3214550254 | O52: =AVERAGE(H52:L52) -> 7.466666667
G53: R.PDSCH.1-2.3 HD-FDD
B54: 3 | C54: MCS4, 25 | D54: NTN-TDLA100-200 | E54: 16 | F54: 1x2 | G54: New FRC for FDD | H54: -2.6 | I54: -3.2 | J54: -1.6 | M54: =MAX(H54,L54) -> -2.6 | N54: =_xlfn.STDEV.S(H54:L54) -> 0.8082903769 | O54: =AVERAGE(H54:L54) -> -2.466666667
G55: New FRC for HD-FDD
B56: 4 | C56: MCS13, 25 | D56: NTN-TDLC5-200 | E56: 16 | F56: 1x2 | G56: R.PDSCH.1-25.1 FDD | H56: 4.7 | I56: 3.4 | J56: 4.3 | M56: =MAX(H56,L56) -> 4.7 | N56: =_xlfn.STDEV.S(H56:L56) -> 0.6658328118 | O56: =AVERAGE(H56:L56) -> 4.133333333
G57: R.PDSCH.1-2.3 HD-FDD
B59: NTN eRedCap 1Rx/2Rx UE with baseband bandwidth reduction capability
B60: Test number | C60: MCS/PRB | D60: Channel model | E60: HARQ process | F60: Antenna configuration | G60: Reference channel | H60: Huawei | I60: Ericsson | J60: Apple | K60: QC | L60: MTK | M60: average | N60: additional margin | O60: SNR
B61: 1 | C61: MCS4, 25 | D61: NTN-TDLA100-200 | E61: 16 | F61: 1x1 | G61: New FRC for FDD | H61: 1.4 | I61: 1.2 | J61: 2.5 | M61: =AVERAGE(H61:L61) -> 1.7 | N61: 0.5 | O61: =ROUND(M61+N61,1) -> 2.2
G62: New FRC for HD-FDD
B63: 2 | C63: MCS13, 25 | D63: NTN-TDLC5-200 | E63: 16 | F63: 1x1 | G63: R.PDSCH.1-25.1 FDD | H63: 7.6 | I63: 7.1 | J63: 7.7 | M63: =AVERAGE(H63:L63) -> 7.466666667 | N63: 0.5 | O63: =ROUND(M63+N63,1) -> 8
G64: R.PDSCH.1-2.3 HD-FDD
B65: 3 | C65: MCS4, 25 | D65: NTN-TDLA100-200 | E65: 16 | F65: 1x2 | G65: New FRC for FDD | H65: -2.6 | I65: -3.2 | J65: -1.6 | M65: =AVERAGE(H65:L65) -> -2.466666667 | N65: 0.5 | O65: =ROUND(M65+N65,1) -> -2
G66: New FRC for HD-FDD
B67: 4 | C67: MCS13, 25 | D67: NTN-TDLC5-200 | E67: 16 | F67: 1x2 | G67: R.PDSCH.1-25.1 FDD | H67: 4.7 | I67: 3.4 | J67: 4.3 | M67: =AVERAGE(H67:L67) -> 4.133333333 | N67: 0.5 | O67: =ROUND(M67+N67,1) -> 4.6
G68: R.PDSCH.1-2.3 HD-FDD
M70: Cf. 0.5dB for QPSK/16QAM, 0.8dB for 64QAM/256QAM, and 1dB for 1024QAM (single carrier case)

Sheet PUSCH requirement 4Rx (hidden)
A1: case | B1: Tx | C1: SCS | D1: Waveform | E1: BW | F1: Mapping Type | G1: MCS for target cell | H1: MCS for interferer cell | I1: Propagation condition for target cell | J1: Propagation conditon for interferer cell | K1: Number of Interferer cells | L1: DIP set | M1: 38.104 req | N1: 38.141-1/2 req | O1: Samsung | Q1: Huawei | S1: Ericsson | U1: ZTE | W1: Nokia | Y1: QC | AA1: CATT | AC1: CTC | AE1: CMCC | AG1: Tejas Networks | AI1: NTT DOCOMO | AK1: SPAN | AM1: AVERAGE
O2: ideal | P2: Impairment | Q2: ideal | R2: Impairment | S2: ideal | T2: Impairment | U2: ideal | V2: Impairment | W2: ideal | X2: Impairment | Y2: ideal | Z2: Impairment | AA2: ideal | AB2: Impairment | AC2: ideal | AD2: Impairment | AE2: ideal | AF2: Impairment | AG2: ideal | AH2: Impairment | AI2: ideal | AJ2: Impairment | AK2: Ideal | AL2: Impairment | AM2: Ideal | AN2: Impairment
A3: 1 | B3: 1 | C3: 15kHz | D3: CP-OFDM | E3: 5MHz | F3: A | G3: 16 | H3: 16QAM | I3: TDLC300-100 | J3: TDLC300-100 | K3: 2 | L3: HomNet set1: (-1.11. -10.91) | M3: =DerivingPerfReq(O3:AJ3) -> 10.1 | N3: =IF(M3>-100,M3+0.6,M3) -> 10.7 | O3: 9.1 | P3: 11.1 | Q3: 8 | R3: 10 | S3: 8.18 | T3: 10.48 | U3: 7.4 | V3: 9.9 | W3: 7.4 | X3: 9.9 | Y3: 8.7 | Z3: 10.7 | AA3: 7.74 | AB3: 10.24 | AC3: 8 | AD3: 10.5 | AE3: 7.02 | AF3: 9.02 | AG3: 7.7 | AK3: =MAX(O3,Q3,S3,U3,W3,Y3,AA3,AC3,AE3,AG3,AI3)-MIN(O3,Q3,S3,U3,W3,Y3,AA3,AC3,AE3,AG3,AI3) -> 2.08 | AL3: =MAX(P20,R20,T20,V20,X20,Z20,AB20,AD20,AF20,AH20,AJ20) -> 11.6 | AM3: =AVERAGE(O3,Q3,S3,U3,W3,Y3,AA3,AC3,AE3,AG3,AI3) -> 7.924 | AN3: =AVERAGE(P3,R3,T3,V3,X3,Z3,AB3,AD3,AF3,AH3,AJ3) -> 10.20444444
A4: 2 | F4: B | M4: =DerivingPerfReq(O4:AJ4) -> 10.4 | N4: =IF(M4>-100,M4+0.6,M4) -> 11 | O4: 9.1 | P4: 11.1 | S4: 8.24 | T4: 10.5 | U4: 7.3 | V4: 9.8 | W4: 7.5 | X4: 10 | AC4: 8.2 | AD4: 10.7 | AK4: =MAX(O4,Q4,S4,U4,W4,Y4,AA4,AC4,AE4,AG4,AI4)-MIN(O4,Q4,S4,U4,W4,Y4,AA4,AC4,AE4,AG4,AI4) -> 1.8 | AL4: =MAX(P21,R21,T21,V21,X21,Z21,AB21,AD21,AF21,AH21,AJ21) -> 11.6 | AM4: =AVERAGE(O4,Q4,S4,U4,W4,Y4,AA4,AC4,AE4,AG4,AI4) -> 8.068 | AN4: =AVERAGE(P4,R4,T4,V4,X4,Z4,AB4,AD4,AF4,AH4,AJ4) -> 10.42
A6: 3 | B6: 1 | C6: 15kHz | D6: CP-OFDM | E6: 5MHz | F6: A | G6: 16 | H6: 16QAM | I6: TDLA30-10 | J6: TDLC300-100 | K6: 2 | L6: HetNet set2: (-0.43. -13.78) | M6: =DerivingPerfReq(O6:AJ6) -> 10.1 | N6: 10.7 | O6: 9.2 | P6: 11.2 | Q6: 8.4 | R6: 10.4 | S6: 7.55 | T6: 9.63 | U6: 7 | V6: 9.5 | W6: 7 | X6: 9.5 | Y6: 9.59 | Z6: 11.59 | AA6: 8.53 | AB6: 11.03 | AC6: 8.5 | AD6: 11 | AE6: 7.93 | AF6: 9.93 | AG6: 9 | AK6: 2.59 | AL6: 12.37 | AM6: 8.27 | AN6: 10.42
A7: 4 | F7: B | M7: =DerivingPerfReq(O7:AJ7) -> 10.2 | N7: 10.8 | O7: 9.2 | P7: 11.2 | S7: 7.77 | T7: 10.16 | U7: 7.1 | V7: 9.6 | W7: 7 | X7: 9.5 | AC7: 8.9 | AD7: 11.4 | AK7: 2.2 | AL7: 11.5 | AM7: 7.994 | AN7: 10.372
A9: 5 | B9: 1 | C9: 15kHz | D9: CP-OFDM | E9: 20MHz | F9: A | G9: 16 | H9: 16QAM | I9: TDLC300-100 | J9: TDLC300-100 | K9: 2 | L9: HomNet set1: (-1.11. -10.91) | M9: =DerivingPerfReq(O9:AJ9) -> 10.4 | N9: 11 | O9: 9.2 | P9: 11.2 | Q9: 8.2 | R9: 10.2 | S9: 8.3 | T9: 10.5 | U9: 8.2 | V9: 10.7 | W9: 7.6 | X9: 10.1 | Y9: 8.67 | Z9: 10.67 | AA9: 8.5 | AB9: 11 | AC9: 7.7 | AD9: 10.2 | AE9: 7.32 | AF9: 9.32 | AG9: 8 | AK9: 1.88 | AL9: 12.1 | AM9: 8.169 | AN9: 10.43222222
A10: 6 | F10: B | M10: =DerivingPerfReq(O10:AJ10) -> 10.7 | N10: 11.3 | O10: 9.2 | P10: 11.2 | S10: 8.33 | T10: 10.56 | U10: 8.3 | V10: 10.8 | W10: 7.6 | X10: 10.1 | AC10: 8.2 | AD10: 10.7 | AK10: 1.6 | AL10: 11.5 | AM10: 8.326 | AN10: 10.672
A12: 7 | B12: 1 | C12: 15kHz | D12: CP-OFDM | E12: 20MHz | F12: A | G12: 16 | H12: 16QAM | I12: TDLA30-10 | J12: TDLC300-100 | K12: 2 | L12: HetNet set2: (-0.43. -13.78) | M12: =DerivingPerfReq(O12:AJ12) -> 11.1 | N12: 11.7 | O12: 9.3 | P12: 11.3 | Q12: 8.8 | R12: 10.8 | S12: 8.19 | T12: 10.46 | U12: 7.5 | V12: 10 | W12: 6.8 | X12: 9.3 | Y12: 9.62 | Z12: 11.62 | AA12: 9.3 | AB12: 11.8 | AC12: 9 | AD12: 11.5 | AE12: 7.91 | AF12: 9.91 | AG12: 9.2 | AK12: 2.82 | AL12: 12.34 | AM12: 8.562 | AN12: 10.74333333
A13: 8 | F13: B | M13: =DerivingPerfReq(O13:AJ13) -> 10.9 | N13: 11.5 | O13: 9.3 | P13: 11.3 | S13: 8.31 | T13: 10.58 | U13: 7.6 | V13: 10.1 | W13: 6.7 | X13: 9.2 | AC13: 9 | AD13: 11.7 | AK13: 2.6 | AL13: 11.2 | AM13: 8.182 | AN13: 10.576
A15: 32 | F15: B | M15: =DerivingPerfReq(O15:AJ15) -> -100 | AK15: 0
A18: case | B18: Tx | C18: SCS | D18: Waveform | E18: BW | F18: Mapping Type | G18: MCS for target cell | H18: MCS for interferer cell | I18: Propagation condition for target cell | J18: Propagation conditon for interferer cell | K18: Number of Interferer cells | L18: DIP set | M18: 38.104 req | N18: 38.141-1/2 req | O18: Samsung | Q18: Huawei | S18: Ericsson | U18: ZTE | W18: Nokia | Y18: QC | AA18: CATT | AC18: CTC | AE18: CMCC | AG18: Tejas Networks | AI18: NTT DOCOMO | AK18: SPAN | AM18: AVERAGE
O19: ideal | P19: Impairment | Q19: ideal | R19: Impairment | S19: ideal | T19: Impairment | U19: ideal | V19: Impairment | W19: ideal | X19: Impairment | Y19: ideal | Z19: Impairment | AA19: idela | AB19: Impairment | AC19: ideal | AD19: Impairment | AE19: ideal | AF19: Impairment | AG19: ideal | AH19: Impairment | AI19: ideal | AJ19: Impairment | AK19: Ideal | AL19: Impairment | AM19: Ideal | AN19: Impairment
A20: 1 | B20: 1 | C20: 30kHz | D20: CP-OFDM | E20: 10MHz | F20: A | G20: 16 | H20: 16QAM | I20: TDLC300-100 | J20: TDLC300-100 | K20: 2 | L20: HomNet set1: (-1.11. -10.91) | M20: =DerivingPerfReq(O20:AJ20) -> 10.4 | N20: =IF(M20>-100,M20+0.6,M20) -> 11 | O20: 9.6 | P20: 11.6 | Q20: 7.6 | R20: 9.6 | S20: 8.29 | T20: 10.7 | U20: 8.1 | V20: 10.6 | W20: 8.1 | X20: 10.6 | Y20: 9.06 | Z20: 11.06 | AA20: 8.4 | AB20: 10.9 | AC20: 8.2 | AD20: 10.7 | AE20: 7.44 | AF20: 9.44 | AG20: 8.4 | AK20: =MAX(O20,Q20,S20,U20,W20,Y20,AA20,AC20,AE20,AG20,AI20)-MIN(O20,Q20,S20,U20,W20,Y20,AA20,AC20,AE20,AG20,AI20) -> 2.16 | AL20: =MAX(P20,R20,T20,V20,X20,Z20,AB20,AD20,AF20,AH20,AJ20)-MIN(P20,R20,T20,V20,X20,Z20,AB20,AD20,AF20,AH20,AJ20) -> 2.16 | AM20: =AVERAGE(O20,Q20,S20,U20,W20,Y20,AA20,AC20,AE20,AG20,AI20) -> 8.319 | AN20: =AVERAGE(P20,R20,T20,V20,X20,Z20,AB20,AD20,AF20,AH20,AJ20) -> 10.57777778
A21: 2 | F21: B | M21: =DerivingPerfReq(O21:AJ21) -> 10.8 | N21: =IF(M21>-100,M21+0.6,M21) -> 11.4 | O21: 9.6 | P21: 11.6 | S21: 8.35 | T21: 10.55 | U21: 8.2 | V21: 10.7 | W21: 8.1 | X21: 10.6 | AC21: 8.3 | AD21: 10.8 | AK21: =MAX(O21,Q21,S21,U21,W21,Y21,AA21,AC21,AE21,AG21,AI21)-MIN(O21,Q21,S21,U21,W21,Y21,AA21,AC21,AE21,AG21,AI21) -> 1.5 | AL21: =MAX(P21,R21,T21,V21,X21,Z21,AB21,AD21,AF21,AH21,AJ21)-MIN(P21,R21,T21,V21,X21,Z21,AB21,AD21,AF21,AH21,AJ21) -> 1.05 | AM21: =AVERAGE(O21,Q21,S21,U21,W21,Y21,AA21,AC21,AE21,AG21,AI21) -> 8.51 | AN21: =AVERAGE(P21,R21,T21,V21,X21,Z21,AB21,AD21,AF21,AH21,AJ21) -> 10.85
A23: 3 | B23: 1 | C23: 30kHz | D23: CP-OFDM | E23: 10MHz | F23: A | G23: 16 | H23: 16QAM | I23: TDLA30-10 | J23: TDLC300-100 | K23: 2 | L23: HetNet set2: (-0.43. -13.78) | M23: =DerivingPerfReq(O23:AJ23) -> 10.4 | N23: 11 | O23: 9.5 | P23: 11.5 | Q23: 8.1 | R23: 10.1 | S23: 8.13 | T23: 10.49 | U23: 7.7 | V23: 10.2 | W23: 7.2 | X23: 10.2 | Y23: 10.37 | Z23: 12.37 | AA23: 8.5 | AB23: 11 | AC23: 8.6 | AD23: 11.1 | AE23: 7.9 | AF23: 9.9 | AG23: 9.3 | AK23: 3.17 | AL23: 2.47 | AM23: 8.53 | AN23: 10.76222222
A24: 4 | F24: B | M24: =DerivingPerfReq(O24:AJ24) -> 10.5 | N24: 11.1 | O24: 9.5 | P24: 11.5 | S24: 8.18 | T24: 10.39 | U24: 7.8 | V24: 10.3 | W24: 7.2 | X24: 10.2 | AC24: 8.5 | AD24: 11 | AK24: 2.3 | AL24: 1.3 | AM24: 8.236 | AN24: 10.678
A26: 5 | B26: 1 | C26: 30kHz | D26: CP-OFDM | E26: 100MHz | F26: A | G26: 16 | H26: 16QAM | I26: TDLC300-100 | J26: TDLC300-100 | K26: 2 | L26: HomNet set1: (-1.11. -10.91) | M26: =DerivingPerfReq(O26:AJ26) -> 10.8 | N26: 11.4 | O26: 9.5 | P26: 11.5 | Q26: 8.2 | R26: 10.2 | S26: 8.06 | T26: 10.16 | U26: 8 | V26: 10.5 | W26: 8 | X26: 10.5 | Y26: 8.92 | Z26: 10.92 | AA26: 9.6 | AB26: 12.1 | AC26: 8.6 | AD26: 11.1 | AE26: 8.12 | AF26: 10.12 | AG26: 8.5 | AK26: 1.6 | AL26: 1.98 | AM26: 8.55 | AN26: 10.78888889
A27: 6 | F27: B | M27: =DerivingPerfReq(O27:AJ27) -> 10.8 | N27: 11.4 | O27: 9.5 | P27: 11.5 | S27: 8.13 | T27: 10.33 | U27: 8.1 | V27: 10.6 | W27: 8 | X27: 10.5 | AC27: 8.6 | AD27: 11.1 | AK27: 1.5 | AL27: 1.17 | AM27: 8.466 | AN27: 10.806
A29: 7 | B29: 1 | C29: 30kHz | D29: CP-OFDM | E29: 100MHz | F29: A | G29: 16 | H29: 16QAM | I29: TDLA30-10 | J29: TDLC300-100 | K29: 2 | L29: HetNet set2: (-0.43. -13.78) | M29: =DerivingPerfReq(O29:AJ29) -> 10.8 | N29: 11.4 | O29: 9.2 | P29: 11.2 | Q29: 9 | R29: 11 | S29: 8.35 | T29: 10.83 | U29: 8.1 | V29: 10.6 | W29: 7.7 | X29: 10.2 | Y29: 10.03 | Z29: 12.03 | AA29: 9.84 | AB29: 12.34 | AC29: 8.7 | AD29: 11.2 | AE29: 8.4 | AF29: 10.4 | AG29: 9.3 | AK29: 2.33 | AL29: 2.14 | AM29: 8.862 | AN29: 11.08888889
A30: 8 | F30: B | M30: =DerivingPerfReq(O30:AJ30) -> 10.8 | N30: 11.4 | O30: 9.2 | P30: 11.2 | S30: 8.41 | T30: 10.66 | U30: 8.1 | V30: 10.6 | W30: 7.7 | X30: 10.2 | AC30: 8.6 | AD30: 11.1 | AK30: 1.5 | AL30: 1 | AM30: 8.402 | AN30: 10.752

Sheet PUSCH requirement 8Rx (hidden)
A1: case | B1: Tx | C1: SCS | D1: Waveform | E1: BW | F1: Mapping Type | G1: MCS for target cell | H1: MCS for interferer cell | I1: Propagation condition for target cell | J1: Propagation conditon for interferer cell | K1: Number of Interferer cells | L1: DIP set | M1: 38.104 req | N1: 38.141-1/2 req | O1: Samsung | Q1: Huawei | S1: Ericsson | U1: ZTE | W1: Nokia | Y1: CTC | AA1: QC | AC1: CATT | AE1: CMCC | AG1: Tejas Networks | AI1: NTT DOCOMO | AK1: SPAN | AM1: AVERAGE
O2: Ideal | P2: impairment | Q2: ideal | R2: impairment | S2: ideal | T2: impairment | U2: ideal | V2: impairment | W2: ideal | X2: impairment | Y2: ideal | Z2: impairment | AA2: ideal | AB2: impairment | AC2: ideal | AD2: impairment | AE2: ideal | AF2: impairment | AG2: ideal | AH2: impairment | AI2: ideal | AJ2: impairment | AK2: Ideal | AL2: impairment | AM2: Ideal | AN2: Impairment
A3: 1 | B3: 1 | C3: 15kHz | D3: CP-OFDM | E3: 5MHz | F3: A | G3: 16 | H3: 16QAM | I3: TDLC300-100 | J3: TDLC300-100 | K3: 2 | L3: HomNet set1: (-1.11. -10.91) | M3: =DerivingPerfReq(O3:AJ3) -> 6.9 | N3: =IF(M3>-100,M3+0.6,M3) -> 7.5 | O3: 4.7 | P3: 6.7 | Q3: 4.6 | R3: 6.6 | S3: 4.14 | T3: 6.28 | U3: 4.4 | V3: 6.9 | W3: 3.2 | X3: 5.7 | Y3: 4.2 | Z3: 6.7 | AA3: 4.62 | AB3: 7.12 | AC3: 5 | AD3: 7.5 | AE3: 2.79 | AF3: 4.79 | AG3: 3.2 | AI3: 5.62 | AJ3: 7.62 | AK3: =MAX(O3,Q3,S3,U3,W3,Y3,AA3,AC3,AE3,AG3,AI3)-MIN(O3,Q3,S3,U3,W3,Y3,AA3,AC3,AE3,AG3,AI3) -> 2.83 | AL3: =MAX(P3,R3,T3,V3,X3,Z3,AB3,AD3,AF3,AH3,AJ3)-MIN(P3,R3,T3,V3,X3,Z3,AB3,AD3,AF3,AH3,AJ3) -> 2.83 | AM3: =AVERAGE(O3,Q3,S3,U3,W3,Y3,AA3,AC3,AE3,AG3,AI3) -> 4.224545455 | AN3: =AVERAGE(P3,R3,T3,V3,X3,Z3,AB3,AD3,AF3,AH3,AJ3) -> 6.591
A4: 2 | F4: B | M4: =DerivingPerfReq(O4:AJ4) -> 6.5 | N4: =IF(M4>-100,M4+0.6,M4) -> 7.1 | O4: 4.7 | P4: 6.7 | S4: 4.22 | T4: 6.42 | U4: 4.6 | V4: 7.1 | W4: 3.1 | X4: 5.6 | Y4: 4 | Z4: 6.5 | AI4: 8.07 | AJ4: 10.07 | AK4: =MAX(O4,Q4,S4,U4,W4,Y4,AA4,AC4,AE4,AG4,AI4)-MIN(O4,Q4,S4,U4,W4,Y4,AA4,AC4,AE4,AG4,AI4) -> 4.97 | AL4: =MAX(P4,R4,T4,V4,X4,Z4,AB4,AD4,AF4,AH4,AJ4)-MIN(P4,R4,T4,V4,X4,Z4,AB4,AD4,AF4,AH4,AJ4) -> 4.47 | AM4: =AVERAGE(O4,Q4,S4,U4,W4,Y4,AA4,AC4,AE4,AG4,AI4) -> 4.781666667 | AN4: =AVERAGE(P4,R4,T4,V4,X4,Z4,AB4,AD4,AF4,AH4,AJ4) -> 7.065
A6: 3 | B6: 1 | C6: 15kHz | D6: CP-OFDM | E6: 5MHz | F6: A | G6: 16 | H6: 16QAM | I6: TDLA30-10 | J6: TDLC300-100 | K6: 2 | L6: HetNet set2: (-0.43. -13.78) | M6: =DerivingPerfReq(O6:AJ6) -> 6.1 | N6: 6.7 | O6: 4.6 | P6: 6.6 | Q6: 4.4 | R6: 6.4 | S6: 3.55 | T6: 6.02 | U6: 3.4 | V6: 5.9 | W6: 3 | X6: 5.5 | Y6: 4.1 | Z6: 6.6 | AA6: 5.91 | AB6: 8.41 | AC6: 5.05 | AD6: 7.55 | AE6: 3.36 | AF6: 5.36 | AG6: 4 | AI6: 6.13 | AJ6: 8.13 | AK6: 3.13 | AL6: 3.05 | AM6: 4.318181818 | AN6: 6.647
A7: 4 | F7: B | M7: =DerivingPerfReq(O7:AJ7) -> 6.1 | N7: 6.7 | O7: 4.6 | P7: 6.6 | S7: 3.68 | T7: 5.91 | U7: 3.3 | V7: 5.8 | W7: 3 | X7: 5.5 | Y7: 4.2 | Z7: 6.7 | AI7: 8.7 | AJ7: 10.7 | AK7: 5.7 | AL7: 5.2 | AM7: 4.58 | AN7: 6.868333333
A9: 5 | B9: 1 | C9: 15kHz | D9: CP-OFDM | E9: 20MHz | F9: A | G9: 16 | H9: 16QAM | I9: TDLC300-100 | J9: TDLC300-100 | K9: 2 | L9: HomNet set1: (-1.11. -10.91) | M9: =DerivingPerfReq(O9:AJ9) -> 6.6 | N9: 7.2 | O9: 4.8 | P9: 6.8 | Q9: 4.5 | R9: 6.5 | S9: 4.21 | T9: 6.62 | U9: 4.8 | V9: 7.3 | W9: 3.3 | X9: 5.8 | Y9: 4.5 | Z9: 7 | AA9: 4.5 | AB9: 7 | AC9: 5.97 | AD9: 8.47 | AE9: 3.68 | AF9: 5.68 | AG9: 3.2 | AI9: 6.04 | AJ9: 8.04 | AK9: 2.84 | AL9: 2.79 | AM9: 4.5 | AN9: 6.921
A10: 6 | F10: B | M10: =DerivingPerfReq(O10:AJ10) -> 6.7 | N10: 7.3 | O10: 4.8 | P10: 6.8 | S10: 4.32 | T10: 6.65 | U10: 4.9 | V10: 7.4 | W10: 3.4 | X10: 5.9 | Y10: 4.3 | Z10: 6.8 | AI10: 8.97 | AJ10: 10.97 | AK10: 5.57 | AL10: 5.07 | AM10: 5.115 | AN10: 7.42
A12: 7 | B12: 1 | C12: 15kHz | D12: CP-OFDM | E12: 20MHz | F12: A | G12: 16 | H12: 16QAM | I12: TDLA30-10 | J12: TDLC300-100 | K12: 2 | L12: HetNet set2: (-0.43. -13.78) | M12: =DerivingPerfReq(O12:AJ12) -> 6.8 | N12: 7.4 | O12: 4.8 | P12: 6.8 | Q12: 4.5 | R12: 6.5 | S12: 3.79 | T12: 6.13 | U12: 3.6 | V12: 6.1 | W12: 3 | X12: 5.5 | Y12: 4.4 | Z12: 6.9 | AA12: 5.58 | AB12: 8.08 | AC12: 5.4 | AD12: 7.9 | AE12: 3.9 | AF12: 5.9 | AG12: 4.1 | AI12: 6.25 | AJ12: 8.25 | AK12: 3.25 | AL12: 2.75 | AM12: 4.483636364 | AN12: 6.806
A13: 8 | F13: B | M13: =DerivingPerfReq(O13:AJ13) -> 6.2 | N13: 6.8 | O13: 4.8 | P13: 6.8 | S13: 3.92 | T13: 6.09 | U13: 3.7 | V13: 6.2 | W13: 2.9 | X13: 5.4 | Y13: 4.1 | Z13: 6.6 | AI13: 9.32 | AJ13: 11.32 | AK13: 6.42 | AL13: 5.92 | AM13: 4.79 | AN13: 7.068333333
A18: case | B18: Tx | C18: SCS | D18: Waveform | E18: BW | F18: Mapping Type | G18: MCS for target cell | H18: MCS for interferer cell | I18: Propagation condition for target cell | J18: Propagation conditon for interferer cell | K18: Number of Interferer cells | L18: DIP set | M18: 38.104 req | N18: 38.141-1/2 req | O18: Samsung | Q18: Huawei | S18: Ericsson | U18: ZTE | W18: Nokia | Y18: CTC | AA18: QC | AC18: CATT | AE18: CMCC | AG18: Tejas Networks | AI18: NTT DOCOMO | AK18: SPAN | AM18: AVERAGE
O19: Ideal | P19: impairment | Q19: ideal | R19: impairment | S19: ideal | T19: impairment | U19: ideal | V19: impairment | W19: ideal | X19: impairment | Y19: ideal | Z19: impairment | AA19: ideal | AB19: impairment | AC19: ideal | AD19: impairment | AE19: ideal | AF19: impairment | AG19: ideal | AH19: impairment | AI19: ideal | AJ19: impairment | AK19: Ideal | AL19: Ideal | AM19: Ideal | AN19: Impairment
A20: 1 | B20: 1 | C20: 30kHz | D20: CP-OFDM | E20: 10MHz | F20: A | G20: 16 | H20: 16QAM | I20: TDLC300-100 | J20: TDLC300-100 | K20: 2 | L20: HomNet set1: (-1.11. -10.91) | M20: =DerivingPerfReq(O20:AJ20) -> 6.7 | N20: =IF(M20>-100,M20+0.6,M20) -> 7.3 | O20: 5.2 | P20: 7.2 | Q20: 4.3 | R20: 6.3 | S20: 4.34 | T20: 6.66 | U20: 4.7 | V20: 7.2 | W20: 3.9 | X20: 6.4 | Y20: 4.3 | Z20: 6.8 | AA20: 4.91 | AB20: 7.41 | AC20: 6.25 | AD20: 8.75 | AE20: 3.27 | AF20: 5.27 | AG20: 3.7 | AI20: 5.91 | AJ20: 7.91 | AK20: =MAX(O20,Q20,S20,U20,W20,Y20,AA20,AC20,AE20,AG20,AI20)-MIN(O20,Q20,S20,U20,W20,Y20,AA20,AC20,AE20,AG20,AI20) -> 2.98 | AL20: =MAX(P20,R20,T20,V20,X20,Z20,AB20,AD20,AF20,AH20,AJ20)-MIN(P20,R20,T20,V20,X20,Z20,AB20,AD20,AF20,AH20,AJ20) -> 3.48 | AM20: =AVERAGE(O20,Q20,S20,U20,W20,Y20,AA20,AC20,AE20,AG20,AI20) -> 4.616363636 | AN20: =AVERAGE(P20,R20,T20,V20,X20,Z20,AB20,AD20,AF20,AH20,AJ20) -> 6.99
A21: 2 | F21: B | M21: =DerivingPerfReq(O21:AJ21) -> 6.9 | N21: =IF(M21>-100,M21+0.6,M21) -> 7.5 | O21: 5.2 | P21: 7.2 | S21: 4.36 | T21: 6.53 | U21: 4.8 | V21: 7.3 | W21: 3.9 | X21: 6.4 | Y21: 4.4 | Z21: 6.9 | AI21: 6.39 | AJ21: 8.39 | AK21: =MAX(O21,Q21,S21,U21,W21,Y21,AA21,AC21,AE21,AG21,AI21)-MIN(O21,Q21,S21,U21,W21,Y21,AA21,AC21,AE21,AG21,AI21) -> 2.49 | AL21: =MAX(P21,R21,T21,V21,X21,Z21,AB21,AD21,AF21,AH21,AJ21)-MIN(P21,R21,T21,V21,X21,Z21,AB21,AD21,AF21,AH21,AJ21) -> 1.99 | AM21: =AVERAGE(O21,Q21,S21,U21,W21,Y21,AA21,AC21,AE21,AG21,AI21) -> 4.841666667 | AN21: =AVERAGE(P21,R21,T21,V21,X21,Z21,AB21,AD21,AF21,AH21,AJ21) -> 7.12
A23: 3 | B23: 1 | C23: 30kHz | D23: CP-OFDM | E23: 10MHz | F23: A | G23: 16 | H23: 16QAM | I23: TDLA30-10 | J23: TDLC300-100 | K23: 2 | L23: HetNet set2: (-0.43. -13.78) | M23: =DerivingPerfReq(O23:AJ23) -> 6.5 | N23: 7.1 | O23: 5 | P23: 7 | Q23: 4.3 | R23: 6.3 | S23: 4.09 | T23: 6.41 | U23: 4.3 | V23: 6.8 | W23: 3.3 | X23: 5.8 | Y23: 4.2 | Z23: 6.7 | AA23: 6.2 | AB23: 8.7 | AC23: 5.1 | AD23: 7.6 | AE23: 3.3 | AF23: 5.3 | AG23: 4.8 | AI23: 6.33 | AJ23: 8.33 | AK23: 3.03 | AL23: 3.4 | AM23: 4.629090909 | AN23: 6.894
A24: 4 | F24: B | M24: =DerivingPerfReq(O24:AJ24) -> 6.7 | N24: 7.3 | O24: 5 | P24: 8.1 | S24: 4.13 | T24: 6.3 | U24: 4.4 | V24: 6.9 | W24: 3.3 | X24: 5.8 | Y24: 4 | Z24: 6.5 | AI24: 7.06 | AJ24: 9.06 | AK24: 3.76 | AL24: 3.26 | AM24: 4.648333333 | AN24: 7.11
A26: 5 | B26: 1 | C26: 30kHz | D26: CP-OFDM | E26: 100MHz | F26: A | G26: 16 | H26: 16QAM | I26: TDLC300-100 | J26: TDLC300-100 | K26: 2 | L26: HomNet set1: (-1.11. -10.91) | M26: =DerivingPerfReq(O26:AJ26) -> 6.7 | N26: 7.3 | O26: 5.2 | P26: 7.2 | Q26: 4.6 | R26: 6.6 | S26: 4.24 | T26: 6.47 | U26: 4.2 | V26: 6.7 | W26: 3.8 | X26: 6.3 | Y26: 4.8 | Z26: 7.3 | AA26: 4.67 | AB26: 7.17 | AC26: 7.2 | AD26: 9.7 | AE26: 3.49 | AF26: 5.49 | AG26: 3.7 | AI26: 5.9 | AJ26: 6.9 | AK26: 3.71 | AL26: 4.21 | AM26: 4.709090909 | AN26: 6.983
A27: 6 | F27: B | M27: =DerivingPerfReq(O27:AJ27) -> 6.9 | N27: 7.5 | O27: 5.4 | P27: 7.4 | S27: 4.28 | T27: 6.73 | U27: 4.2 | V27: 6.7 | W27: 3.8 | X27: 6.3 | Y27: 4.9 | Z27: 7.4 | AI27: 6.42 | AJ27: 8.42 | AK27: 2.62 | AL27: 2.12 | AM27: 4.833333333 | AN27: 7.158333333
A29: 7 | B29: 1 | C29: 30kHz | D29: CP-OFDM | E29: 100MHz | F29: A | G29: 16 | H29: 16QAM | I29: TDLA30-10 | J29: TDLC300-100 | K29: 2 | L29: HetNet set2: (-0.43. -13.78) | M29: =DerivingPerfReq(O29:AJ29) -> 6.5 | N29: 7.1 | O29: 4.6 | P29: 6.6 | Q29: 4.7 | R29: 6.7 | S29: 4.24 | T29: 6.6 | U29: 4.5 | V29: 7 | W29: 3.5 | X29: 6 | Y29: 4.6 | Z29: 7.1 | AA29: 5.63 | AB29: 8.13 | AC29: 6.49 | AD29: 8.99 | AE29: 3.48 | AF29: 5.48 | AG29: 4.6 | AI29: 6.23 | AJ29: 8.23 | AK29: 3.01 | AL29: 3.51 | AM29: 4.779090909 | AN29: 7.083
A30: 8 | F30: B | M30: =DerivingPerfReq(O30:AJ30) -> 6.6 | N30: 7.2 | O30: 4.5 | P30: 6.5 | S30: 4.31 | T30: 6.43 | U30: 4.5 | V30: 7 | W30: 3.6 | X30: 6.1 | Y30: 4.5 | Z30: 7 | AI30: 7.34 | AJ30: 9.34 | AK30: 3.74 | AL30: 3.24 | AM30: 4.791666667 | AN30: 7.061666667
A31: 56 | F31: B | N31: =IF(M31>100,M31+0.6,M31) -> 0 | AK31: 0
